fUST/lending_fUST_20240805
["ID","MTS","AMOUNT","RATE_DAILY","PERIOD"]
[334157315,1722801054454,-500.0,0.00013972,2]
[334157316,1722801054463,-500.0,0.00013972,2]
[334157317,1722801054472,-151.0,0.00013972,2]
[334157318,1722801054481,-500.0,0.00013972,2]
[334157319,1722801054491,-500.0,0.00013972,2]
[334157320,1722801054501,-500.0,0.00013972,2]
[334157321,1722801054513,-500.0,0.00013972,2]
[334157322,1722801054524,-500.0,0.00013972,2]
[334157323,1722801054534,-500.0,0.00013972,2]
[334157324,1722801054545,-500.0,0.00013972,2]
[334157325,1722801054556,-500.0,0.00013972,2]
[334157326,1722801054568,-500.0,0.00013972,2]
[334157327,1722801054579,-500.0,0.00013972,2]
[334157328,1722801054590,-1730.611904,0.00013972,2]
[334157329,1722801054602,-500.0,0.00013972,2]
[334157330,1722801054613,-1730.611904,0.00013972,2]
[334157331,1722801054623,-503.79320357,0.00013972,2]
[334157332,1722801054635,-500.0,0.00013972,2]
[334157333,1722801054644,-151.0,0.00013972,2]
[334157334,1722801054654,-151.0,0.00013972,2]
[334157335,1722801054663,-500.0,0.00013972,2]
[334157336,1722801054673,-500.0,0.00013972,2]
[334157337,1722801054683,-500.0,0.00013972,2]
[334157338,1722801054692,-594.09276887,0.00013972,2]
[334157339,1722801054709,-500.0,0.00013972,2]
[334157340,1722801054718,-500.0,0.00013972,2]
[334157341,1722801054727,-500.0,0.00013972,2]
[334157342,1722801054736,-500.0,0.00013972,2]
[334157343,1722801054745,-500.0,0.00013972,2]
[334157344,1722801054755,-500.0,0.00013972,2]
[334157345,1722801054764,-500.0,0.00013972,2]
[334157346,1722801054773,-500.0,0.00013972,2]
[334157347,1722801054782,-500.0,0.00013972,2]
[334157348,1722801054791,-500.0,0.00013972,2]
[334157349,1722801054801,-500.0,0.00013972,2]
[334157350,1722801054809,-500.0,0.00013972,2]
[334157351,1722801054819,-500.0,0.00013972,2]
[334157352,1722801054828,-151.0,0.00013972,2]
[334157353,1722801054839,-151.0,0.00013972,2]
[334157354,1722801054849,-500.0,0.00013972,2]
[334157355,1722801054859,-500.0,0.00013972,2]
[334157356,1722801054871,-151.0,0.00013972,2]
[334157357,1722801054881,-151.0,0.00013972,2]
[334157358,1722801054892,-500.0,0.00013972,2]
[334157359,1722801054901,-500.0,0.00013972,2]
[334157360,1722801054911,-500.0,0.00013972,2]
[334157361,1722801054921,-500.0,0.00013972,2]
[334157362,1722801054930,-500.0,0.00013972,2]
[334157363,1722801054939,-500.0,0.00013972,2]
[334157364,1722801054950,-500.0,0.00013972,2]
[334157365,1722801054959,-500.0,0.00013972,2]
[334157366,1722801054968,-500.0,0.00013972,2]
[334157367,1722801054978,-500.0,0.00013972,2]
[334157368,1722801054987,-500.0,0.00013972,2]
[334157369,1722801055000,-500.0,0.00013972,2]
[334157370,1722801055010,-500.0,0.00013972,2]
[334157371,1722801055020,-500.0,0.00013972,2]
[334157372,1722801055029,-500.0,0.00013972,2]
[334157373,1722801055039,-500.0,0.00013972,2]
[334157374,1722801055049,-500.0,0.00013972,2]
[334157375,1722801055060,-500.0,0.00013972,2]
[334157376,1722801055071,-500.0,0.00013972,2]
[334157377,1722801055081,-151.0,0.00013972,2]
[334157378,1722801055090,-500.0,0.00013972,2]
[334157379,1722801055110,-151.0,0.00013972,2]
[334157380,1722801055120,-500.0,0.00013972,2]
[334157381,1722801055129,-151.0,0.00013972,2]
[334157382,1722801055139,-500.0,0.00013972,2]
[334157383,1722801055151,-178.17458,0.00013972,2]
[334157384,1722801055162,-500.0,0.00013972,2]
[334157385,1722801055171,-500.0,0.00013972,2]
[334157386,1722801055182,-500.0,0.00013972,2]
[334157387,1722801055191,-500.0,0.00013972,2]
[334157388,1722801055204,-500.0,0.00013972,2]
[334157389,1722801055216,-1550.72,0.00013972,2]
[334157390,1722801055226,-500.0,0.00013972,2]
[334157391,1722801055235,-151.0,0.00013972,2]
[334157392,1722801055245,-151.0,0.00013972,2]
[334157393,1722801055254,-151.0,0.00013972,2]
[334157394,1722801055264,-151.0,0.00013972,2]
[334157395,1722801055275,-500.0,0.00013972,2]
[334157396,1722801055285,-151.0,0.00013972,2]
[334157397,1722801055295,-500.0,0.00013972,2]
[334157398,1722801055305,-151.0,0.00013972,2]
[334157399,1722801055315,-500.0,0.00013972,2]
[334157400,1722801055327,-500.0,0.00013972,2]
[334157401,1722801055337,-500.0,0.00013972,2]
[334157402,1722801055348,-500.0,0.00013972,2]
[334157403,1722801055359,-500.0,0.00013972,2]
[334157404,1722801055371,-500.0,0.00013972,2]
[334157405,1722801055384,-500.0,0.00013972,2]
[334157406,1722801055396,-500.0,0.00013972,2]
[334157407,1722801055408,-500.0,0.00013972,2]
[334157408,1722801055419,-500.0,0.00013972,2]
[334157409,1722801055431,-517.39,0.00013972,2]
[334157410,1722801055441,-500.0,0.00013972,2]
[334157411,1722801055456,-500.0,0.00013972,2]
[334157412,1722801055467,-500.0,0.00013972,2]
[334157413,1722801055477,-865.86,0.00013972,2]
[334157414,1722801055487,-500.0,0.00013972,2]
[334157415,1722801055499,-500.0,0.00013972,2]
[334157416,1722801055511,-972.19,0.00013972,2]
[334157417,1722801055522,-500.0,0.00013972,2]
[334157418,1722801055532,-500.0,0.00013972,2]
[334157419,1722801055544,-500.0,0.00013972,2]
[334157420,1722801055554,-500.0,0.00013972,2]
[334157421,1722801055564,-500.0,0.00013972,2]
[334157422,1722801055573,-500.0,0.00013972,2]
[334157423,1722801055584,-1359.622659,0.00013972,2]
[334157424,1722801055594,-1359.622659,0.00013972,2]
[334157425,1722801055604,-151.0,0.00013972,2]
[334157426,1722801055614,-500.0,0.00013972,2]
[334157427,1722801055624,-500.0,0.00013972,2]
[334157428,1722801055633,-1359.622659,0.00013972,2]
[334157429,1722801055773,-1359.622659,0.00013972,2]
[334157430,1722801055782,-500.0,0.00013972,2]
[334157431,1722801055791,-512.21016977,0.00013972,2]
[334157432,1722801055801,-500.0,0.00013972,2]
[334157433,1722801055811,-500.0,0.00013972,2]
[334157434,1722801055822,-500.0,0.00013972,2]
[334157435,1722801055831,-151.0,0.00013972,2]
[334157436,1722801055842,-500.0,0.00013972,2]
[334157437,1722801055852,-283.14684179,0.00013972,2]
[334157438,1722801055863,-500.0,0.00013972,2]
[334157439,1722801055873,-500.0,0.00013972,2]
[334157440,1722801055884,-500.0,0.00013972,2]
[334157441,1722801055894,-500.0,0.00013972,2]
[334157442,1722801055907,-471.24004933,0.00013972,2]
[334157443,1722801055918,-500.0,0.00013972,2]
[334157444,1722801055930,-500.0,0.00013972,2]
[334157445,1722801055942,-607.11779317,0.00013972,2]
[334157446,1722801055955,-500.0,0.00013972,2]
[334157447,1722801055966,-500.0,0.00013972,2]
[334157448,1722801055975,-500.0,0.00013972,2]
[334157449,1722801055990,-500.0,0.00013972,2]
[334157450,1722801056002,-454.69526365,0.00013972,2]
[334157451,1722801056013,-500.0,0.00013972,2]
[334157452,1722801056024,-769.81,0.00013972,2]
[334157453,1722801056034,-218.094417,0.00013972,2]
[334157454,1722801056045,-218.094417,0.00013972,2]
[334157455,1722801056057,-500.0,0.00013972,2]
[334157456,1722801056067,-500.0,0.00013972,2]
[334157457,1722801056078,-218.094417,0.00013972,2]
[334157458,1722801056090,-218.094417,0.00013972,2]
[334157459,1722801056100,-500.0,0.00013972,2]
[334157460,1722801056110,-500.0,0.00013972,2]
[334157461,1722801056120,-500.0,0.00013972,2]
[334157462,1722801056131,-349.53270043,0.00013972,2]
[334157463,1722801056141,-312.43779,0.00013972,2]
[334157464,1722801056152,-312.43779,0.00013972,2]
[334157465,1722801056163,-500.0,0.00013972,2]
[334157466,1722801056173,-312.43779,0.00013972,2]
[334157467,1722801056184,-507.92,0.00013972,2]
[334157468,1722801056193,-312.43779,0.00013972,2]
[334157469,1722801056205,-500.0,0.00013972,2]
[334157470,1722801056216,-500.0,0.00013972,2]
[334157471,1722801056226,-500.0,0.00013972,2]
[334157472,1722801056238,-1127.154128,0.00013972,2]
[334157473,1722801056249,-182.50421348,0.00013972,2]
[334157474,1722801056260,-1127.154128,0.00013972,2]
[334157475,1722801056271,-1127.154128,0.00013972,2]
[334157476,1722801056281,-1127.154128,0.00013972,2]
[334157477,1722801056291,-500.0,0.00013972,2]
[334157478,1722801056302,-500.0,0.00013972,2]
[334157479,1722801056313,-500.0,0.00013972,2]
[334157480,1722801056323,-500.0,0.00013972,2]
[334157481,1722801056333,-577.36044152,0.00013972,2]
[334157482,1722801056343,-500.0,0.00013972,2]
[334157483,1722801056353,-500.0,0.00013972,2]
[334157484,1722801056363,-500.0,0.00013972,2]
[334157485,1722801056372,-500.0,0.00013972,2]
[334157486,1722801056382,-500.0,0.00013972,2]
[334157487,1722801056392,-500.0,0.00013972,2]
[334157488,1722801056401,-500.0,0.00013972,2]
[334157489,1722801056411,-500.0,0.00013972,2]
[334157490,1722801056420,-796.371656,0.00013972,2]
[334157491,1722801056430,-796.371656,0.00013972,2]
[334157492,1722801056439,-500.0,0.00013972,2]
[334157493,1722801056449,-500.0,0.00013972,2]
[334157494,1722801056460,-796.371656,0.00013972,2]
[334157495,1722801056469,-796.371656,0.00013972,2]
[334157496,1722801056479,-500.0,0.00013972,2]
[334157497,1722801056489,-500.0,0.00013972,2]
[334157498,1722801056498,-500.0,0.00013972,2]
[334157499,1722801056508,-500.0,0.00013972,2]
[334157500,1722801056517,-500.0,0.00013972,2]
[334157501,1722801056528,-500.0,0.00013972,2]
[334157502,1722801056538,-500.0,0.00013972,2]
[334157503,1722801056549,-1098.16,0.00013972,2]
[334157504,1722801056559,-511.04286735,0.00013972,2]
[334157505,1722801056568,-500.0,0.00013972,2]
[334157506,1722801056578,-500.0,0.00013972,2]
[334157507,1722801056587,-500.0,0.00013972,2]
[334157508,1722801056598,-500.0,0.00013972,2]
[334157509,1722801056608,-625.87901566,0.00013972,2]
[334157510,1722801056619,-500.0,0.00013972,2]
[334157511,1722801056628,-500.0,0.00013972,2]
[334157512,1722801056637,-500.0,0.00013972,2]
[334157513,1722801056647,-1692.04,0.00013972,2]
[334157514,1722801056657,-500.0,0.00013972,2]
[334157515,1722801056666,-500.0,0.00013972,2]
[334157516,1722801056675,-500.0,0.00013972,2]
[334157517,1722801056684,-305.310962,0.00013972,2]
[334157518,1722801056693,-305.310962,0.00013972,2]
[334157519,1722801056704,-305.310962,0.00013972,2]
[334157520,1722801056713,-305.310962,0.00013972,2]
[334157521,1722801056722,-811.194156,0.00013972,2]
[334157522,1722801056732,-811.194156,0.00013972,2]
[334157523,1722801056741,-752.23,0.00013972,2]
[334157524,1722801056755,-500.0,0.00013972,2]
[334157525,1722801056771,-811.194156,0.00013972,2]
[334157526,1722801056786,-811.194156,0.00013972,2]
[334157527,1722801056798,-151.0,0.00013972,2]
[334157528,1722801056811,-151.0,0.00013972,2]
[334157529,1722801056825,-500.0,0.00013972,2]
[334157530,1722801056840,-500.0,0.00013972,2]
[334157531,1722801056854,-500.0,0.00013972,2]
[334157532,1722801056869,-2045.44,0.00013972,2]
[334157533,1722801056884,-500.0,0.00013972,2]
[334157534,1722801056898,-236.96465992,0.00013972,2]
[334157535,1722801056911,-500.0,0.00013972,2]
[334157536,1722801056925,-500.0,0.00013972,2]
[334157537,1722801056939,-500.0,0.00013972,2]
[334157538,1722801056959,-500.0,0.00013972,2]
[334157539,1722801056974,-500.0,0.00013972,2]
[334157540,1722801056987,-500.0,0.00013972,2]
[334157541,1722801057002,-500.0,0.00013972,2]
[334157542,1722801057013,-200.0,0.00013973,2]
[334157543,1722801057025,-200.0,0.00013973,2]
[334157544,1722801057040,-150.112233,0.000141,2]
[334157545,1722801057053,-608.819202,0.00014226,2]
[334157546,1722801057067,-608.819202,0.00014226,2]
[334157547,1722801057081,-151.0,0.00014236,2]
[334157548,1722801057096,-151.0,0.00014236,2]
[334157549,1722801057112,-151.0,0.00014236,2]
[334157550,1722801057125,-151.0,0.00014236,2]
[334157551,1722801057136,-1499.55,0.00014244,2]
[334157552,1722801057147,-486.68081897,0.00014245,2]
[334157553,1722801057161,-2275.1,0.00014245,2]
[334157554,1722801057174,-500.0,0.00014246,2]
[334157555,1722801057200,-151.0,0.00014246,2]
[334157556,1722801057215,-151.0,0.00014246,2]
[334157557,1722801057231,-500.0,0.00014246,2]
[334157558,1722801057245,-500.0,0.00014246,2]
[334157559,1722801057263,-493.319092,0.00014246,2]
[334157560,1722801057277,-493.319092,0.00014246,2]
[334157561,1722801057288,-500.0,0.00014246,2]
[334157562,1722801057299,-500.0,0.00014246,2]
[334157563,1722801057314,-180.62,0.00014246,2]
[334157564,1722801057329,-500.0,0.00014246,2]
[334157565,1722801057344,-500.0,0.00014246,2]
[334157566,1722801057358,-265.28,0.00014246,2]
[334157567,1722801057375,-500.0,0.00014246,2]
[334157568,1722801057390,-1730.611904,0.00014246,2]
[334157569,1722801057406,-500.0,0.00014246,2]
[334157570,1722801057420,-500.0,0.00014246,2]
[334157571,1722801057434,-500.0,0.00014246,2]
[334157572,1722801057447,-500.0,0.00014246,2]
[334157573,1722801057460,-413.2,0.00014246,2]
[334157574,1722801057473,-500.0,0.00014246,2]
[334157575,1722801057485,-1550.72,0.00014246,2]
[334157576,1722801057497,-151.0,0.00014246,2]
[334157577,1722801057509,-258.978384,0.00014246,2]
[334157578,1722801057521,-462.91472306,0.00014246,2]
[334157579,1722801057533,-517.39,0.00014246,2]
[334157580,1722801057547,-500.0,0.00014246,2]
[334157581,1722801057560,-865.86,0.00014246,2]
[334157582,1722801057572,-500.0,0.00014246,2]
[334157583,1722801057582,-972.19,0.00014246,2]
[334157584,1722801057595,-500.0,0.00014246,2]
[334157585,1722801057608,-1359.622659,0.00014246,2]
[334157586,1722801057621,-500.0,0.00014246,2]
[334157587,1722801057633,-500.0,0.00014246,2]
[334157588,1722801057647,-1359.622659,0.00014246,2]
[334157589,1722801057659,-769.81,0.00014246,2]
[334157590,1722801057674,-218.094417,0.00014246,2]
[334157591,1722801057687,-500.0,0.00014246,2]
[334157592,1722801057699,-218.094417,0.00014246,2]
[334157593,1722801057713,-312.43779,0.00014246,2]
[334157594,1722801057727,-507.92,0.00014246,2]
[334157595,1722801057739,-312.43779,0.00014246,2]
[334157596,1722801057754,-320.28,0.00014246,2]
[334157597,1722801057766,-1127.154128,0.00014246,2]
[334157598,1722801057779,-1127.154128,0.00014246,2]
[334157599,1722801057790,-500.0,0.00014246,2]
[334157600,1722801057801,-796.371656,0.00014246,2]
[334157601,1722801057813,-796.371656,0.00014246,2]
[334157602,1722801057824,-1098.16,0.00014246,2]
[334157603,1722801057835,-500.0,0.00014246,2]
[334157604,1722801057847,-500.0,0.00014246,2]
[334157605,1722801057860,-373.46,0.00014246,2]
[334157606,1722801057874,-500.0,0.00014246,2]
[334157607,1722801057888,-500.0,0.00014246,2]
[334157608,1722801057899,-1692.04,0.00014246,2]
[334157609,1722801057911,-500.0,0.00014246,2]
[334157610,1722801057925,-305.310962,0.00014246,2]
[334157611,1722801057938,-305.310962,0.00014246,2]
[334157612,1722801057952,-811.194156,0.00014246,2]
[334157613,1722801057964,-752.23,0.00014246,2]
[334157614,1722801057979,-811.194156,0.00014246,2]
[334157615,1722801057994,-151.0,0.00014246,2]
[334157616,1722801058008,-2045.44,0.00014246,2]
[334157617,1722801058124,-500.0,0.00014246,2]
[334157618,1722801058168,-661.325077,0.00014247,2]
[334157619,1722801058178,-150.112233,0.000143,2]
[334157620,1722801058187,-1499.55,0.00014349,2]
[334157621,1722801058199,-150.0,0.0001435,2]
[334157622,1722801058208,-506.0,0.0001435,2]
[334157623,1722801058217,-1411.0,0.0001435,2]
[334157624,1722801058227,-150.112233,0.000145,2]
[334157625,1722801058236,-151.0,0.00014508,2]
[334157626,1722801058246,-151.0,0.00014508,2]
[334157627,1722801058255,-608.819202,0.0001451,2]
[334157628,1722801058264,-608.819202,0.0001451,2]
[334157629,1722801058274,-151.0,0.00014519,2]
[334157630,1722801058283,-2275.1,0.00014519,2]
[334157631,1722801058293,-1499.55,0.00014519,2]
[334157632,1722801058302,-500.0,0.0001452,2]
[334157633,1722801058312,-151.0,0.0001452,2]
[334157634,1722801058322,-493.319092,0.0001452,2]
[334157635,1722801058332,-493.319092,0.0001452,2]
[334157636,1722801058343,-500.0,0.0001452,2]
[334157637,1722801058352,-500.0,0.0001452,2]
[334157638,1722801058362,-500.0,0.0001452,2]
[334157639,1722801058373,-500.0,0.0001452,2]
[334157640,1722801058384,-500.0,0.0001452,2]
[334157641,1722801058395,-500.0,0.0001452,2]
[334157642,1722801058407,-500.0,0.0001452,2]
[334157643,1722801058419,-500.0,0.0001452,2]
[334157644,1722801058431,-500.0,0.0001452,2]
[334157645,1722801058441,-1550.72,0.0001452,2]
[334157646,1722801058453,-151.0,0.0001452,2]
[334157647,1722801058463,-517.39,0.0001452,2]
[334157648,1722801058472,-500.0,0.0001452,2]
[334157649,1722801058482,-865.86,0.0001452,2]
[334157650,1722801058491,-500.0,0.0001452,2]
[334157651,1722801058502,-972.19,0.0001452,2]
[334157652,1722801058514,-500.0,0.0001452,2]
[334157653,1722801058525,-1359.622659,0.0001452,2]
[334157654,1722801058537,-500.0,0.0001452,2]
[334157655,1722801058549,-500.0,0.0001452,2]
[334157656,1722801058558,-1359.622659,0.0001452,2]
[334157657,1722801058569,-769.81,0.0001452,2]
[334157658,1722801058578,-218.094417,0.0001452,2]
[334157659,1722801058587,-500.0,0.0001452,2]
[334157660,1722801058598,-218.094417,0.0001452,2]
[334157661,1722801058610,-312.43779,0.0001452,2]
[334157662,1722801058621,-507.92,0.0001452,2]
[334157663,1722801058632,-312.43779,0.0001452,2]
[334157664,1722801058643,-1127.154128,0.0001452,2]
[334157665,1722801058652,-1127.154128,0.0001452,2]
[334157666,1722801058665,-500.0,0.0001452,2]
[334157667,1722801058675,-1098.16,0.0001452,2]
[334157668,1722801058684,-500.0,0.0001452,2]
[334157669,1722801058695,-500.0,0.0001452,2]
[334157670,1722801058712,-500.0,0.0001452,2]
[334157671,1722801058722,-500.0,0.0001452,2]
[334157672,1722801058731,-1692.04,0.0001452,2]
[334157673,1722801058740,-500.0,0.0001452,2]
[334157674,1722801058750,-752.23,0.0001452,2]
[334157675,1722801058759,-2045.44,0.0001452,2]
[334157676,1722801058769,-500.0,0.0001452,2]
[334157677,1722801058779,-1091.57771247,0.0001469,2]
[334157678,1722801058790,-194.5599409,0.0001469,2]
[334157679,1722801058800,-204.25231923,0.0001469,2]
[334157680,1722801058812,-150.112233,0.000147,2]
[334157681,1722801058821,-1499.55,0.00014783,2]
[334157682,1722801058832,-1730.611904,0.00014784,2]
[334157683,1722801058843,-1730.611904,0.00014784,2]
[334157684,1722801058855,-151.0,0.00014784,2]
[334157685,1722801058865,-151.0,0.00014784,2]
[334157686,1722801058876,-2275.1,0.00014793,2]
[334157687,1722801058887,-1499.55,0.00014793,2]
[334157688,1722801058896,-1499.55,0.00014793,2]
[334157689,1722801058905,-1499.55,0.00014793,2]
[334157690,1722801058917,-1499.55,0.00014793,2]
[334157691,1722801058927,-1499.59897156,0.00014793,2]
[334157692,1722801058938,-151.0,0.00014794,2]
[334157693,1722801058951,-151.0,0.00014794,2]
[334157694,1722801058961,-151.0,0.00014794,2]
[334157695,1722801058972,-500.0,0.00014794,2]
[334157696,1722801058984,-500.0,0.00014794,2]
[334157697,1722801058998,-500.0,0.00014794,2]
[334157698,1722801059009,-608.819202,0.00014794,2]
[334157699,1722801059020,-608.819202,0.00014794,2]
[334157700,1722801059031,-151.0,0.00014794,2]
[334157701,1722801059040,-500.0,0.00014794,2]
[334157702,1722801059050,-500.0,0.00014794,2]
[334157703,1722801059060,-500.0,0.00014794,2]
[334157704,1722801059070,-500.0,0.00014794,2]
[334157705,1722801059081,-500.0,0.00014794,2]
[334157706,1722801059091,-500.0,0.00014794,2]
[334157707,1722801059101,-500.0,0.00014794,2]
[334157708,1722801059111,-1550.72,0.00014794,2]
[334157709,1722801059121,-517.39,0.00014794,2]
[334157710,1722801059132,-500.0,0.00014794,2]
[334157711,1722801059142,-865.86,0.00014794,2]
[334157712,1722801059152,-500.0,0.00014794,2]
[334157713,1722801059161,-972.19,0.00014794,2]
[334157714,1722801059172,-500.0,0.00014794,2]
[334157715,1722801059182,-1359.622659,0.00014794,2]
[334157716,1722801059192,-500.0,0.00014794,2]
[334157717,1722801059211,-500.0,0.00014794,2]
[334157718,1722801059222,-1359.622659,0.00014794,2]
[334157719,1722801059232,-769.81,0.00014794,2]
[334157720,1722801059243,-18.81730235,0.00014794,2]
[334157810,1722802232712,-300.0,9.998e-05,2]
[334157812,1722802232722,-300.0,9.998e-05,2]
[334157814,1722802232731,-302.77256106,9.999e-05,2]
[334157816,1722802232741,-568.56884199,9.999e-05,2]
[334157818,1722802232750,-506.48190828,9.999e-05,2]
[334157820,1722802232760,-600.8534117,9.999e-05,2]
[334157822,1722802232769,-269.84624055,9.999e-05,2]
[334157824,1722802232778,-300.99621399,9.999e-05,2]
[334157825,1722802232788,-356.45346079,9.999e-05,2]
[334157827,1722802232797,-244.84557874,9.999e-05,2]
[334157828,1722802232807,-154.77557542,9.999e-05,2]
[334157829,1722802232817,-533.92328189,9.999e-05,2]
[334157830,1722802232827,-156.61103376,9.999e-05,2]
[334157831,1722802232837,-240.80307792,9.999e-05,2]
[334157832,1722802232850,-494.23715236,9.999e-05,2]
[334157833,1722802232862,-519.59956575,9.999e-05,2]
[334157834,1722802232872,-532.14086008,9.999e-05,2]
[334157835,1722802232881,-154.77557542,9.999e-05,2]
[334157836,1722802232891,-188.2335741,9.999e-05,2]
[334157837,1722802232902,-426.9441554,9.999e-05,2]
[334157838,1722802232911,-201.4758121,9.999e-05,2]
[334157839,1722802232921,-154.78330338,9.999e-05,2]
[334157840,1722802232930,-849.39914621,9.999e-05,2]
[334157841,1722802232940,-319.72766707,9.999e-05,2]
[334157842,1722802232950,-156.73199194,9.999e-05,2]
[334157843,1722802232960,-154.78330338,9.999e-05,2]
[334157844,1722802232969,-160.1642143,9.999e-05,2]
[334157845,1722802232979,-779.66389887,9.999e-05,2]
[334157846,1722802232988,-165.53506923,9.999e-05,2]
[334157847,1722802232998,-342.05014288,9.999e-05,2]
[334157848,1722802233008,-288.53209712,9.999e-05,2]
[334157849,1722802233018,-156.96415589,9.999e-05,2]
[334157850,1722802233028,-156.8188046,9.999e-05,2]
[334157851,1722802233038,-205.1880395,9.999e-05,2]
[334157852,1722802233047,-157.80579925,9.999e-05,2]
[334157853,1722802233058,-154.77557542,9.999e-05,2]
[334157854,1722802233068,-942.61257937,9.999e-05,2]
[334157855,1722802233078,-209.86849569,9.999e-05,2]
[334157856,1722802233089,-180.4790292,9.999e-05,2]
[334157857,1722802233103,-727.52933543,9.999e-05,2]
[334157858,1722802233113,-154.77557542,9.999e-05,2]
[334157859,1722802233121,-196.46943428,9.999e-05,2]
[334157860,1722802233132,-163.06705816,9.999e-05,2]
[334157861,1722802233141,-154.78330338,9.999e-05,2]
[334157862,1722802233151,-412.94081029,0.0001,2]
[334157863,1722802233160,-816.2198788,0.0001,2]
[334157864,1722802233170,-235.12976849,0.0001,2]
[334157865,1722802233181,-420.0,0.00010998,2]
[334157866,1722802233191,-1040.76767475,0.00011659,2]
[334157880,1722802238614,-723.37166933,0.00011659,2]
[334157882,1722802239535,-716.43550976,0.00011659,2]
[334157884,1722802239549,-15400.73531442,0.00011659,2]
[334157885,1722802239562,-4179.20921753,0.00011659,2]
[334157886,1722802239575,-2839.48061421,0.00011659,2]
[334157887,1722802239586,-177.452265,0.00012135,2]
[334157889,1722802239596,-177.452265,0.00012346,2]
[334157891,1722802239609,-177.452265,0.00012556,2]
[334157893,1722802239619,-177.452265,0.00012767,2]
[334157895,1722802239629,-2546.52113457,0.000129,2]
[334157897,1722802239639,-200.0,0.00013598,2]
[334157898,1722802239649,-1768.82,0.00013696,2]
[334157900,1722802239659,-500.0,0.00013698,2]
[334157902,1722802239670,-500.0,0.00013698,2]
[334157904,1722802239680,-500.0,0.00013698,2]
[334157905,1722802239691,-500.0,0.00013698,2]
[334157907,1722802239701,-250.0,0.00013698,2]
[334157909,1722802239710,-500.0,0.00013698,2]
[334157912,1722802239720,-500.0,0.00013698,2]
[334157914,1722802239729,-430.0,0.00013698,2]
[334157917,1722802239740,-500.0,0.00013698,2]
[334157920,1722802239750,-500.0,0.00013698,2]
[334157923,1722802239761,-500.0,0.00013698,2]
[334157925,1722802239771,-500.0,0.00013698,2]
[334157926,1722802239780,-500.0,0.00013698,2]
[334157928,1722802239790,-500.0,0.00013698,2]
[334157930,1722802239801,-500.0,0.00013698,2]
[334157932,1722802239810,-500.0,0.00013698,2]
[334157934,1722802239820,-26.46447609,0.00013698,2]
[334157940,1722802239833,-473.53552391,0.00013698,2]
[334157943,1722802239843,-236.27118631,0.00013698,2]
[334157945,1722802239857,-500.0,0.00013698,2]
[334157948,1722802239868,-500.0,0.00013698,2]
[334157949,1722802239879,-500.0,0.00013698,2]
[334157951,1722802239890,-500.0,0.00013698,2]
[334157953,1722802239899,-500.0,0.00013698,2]
[334157955,1722802239908,-500.0,0.00013698,2]
[334157957,1722802239918,-500.0,0.00013698,2]
[334157959,1722802239928,-500.0,0.00013698,2]
[334157961,1722802239938,-500.0,0.00013698,2]
[334157963,1722802239948,-500.0,0.00013698,2]
[334157964,1722802239957,-500.0,0.00013698,2]
[334157966,1722802239967,-504.19481892,0.00013698,2]
[334157968,1722802239976,-500.0,0.00013698,2]
[334157970,1722802239986,-237.0508903,0.00013698,2]